[Event "WYCC 2018 O14"]
[Site "Halkidiki"]
[Date "2018.10.24"]
[Round "6"]
[White "Murzin, Volodar"]
[Black "Egorov, Mikhail"]
[Result "1-0"]
[ECO "C50"]
[WhiteElo "2340"]
[BlackElo "2006"]
[Annotator "NA"]
[PlyCount "89"]
[EventDate "2018.10.20"]
[EventType "swiss"]
[EventCountry "GRE"]
[SourceTitle "playchess.com"]
[Source "ChessBase"]
[SourceQuality "1"]
[TimeControl "40/5400+30:1800+30"]

1. e4 {[%emt 0:00:00]} e5 {[%emt 0:00:00]} 2. Nf3 {[%emt 0:00:00]} Nc6 {[%emt 0:00:00]} 3. Bc4 {[%emt 0:02:31]} Bc5 {[%emt 0:00:08]} 4. d3 {[%emt 0:00:21]} d6 {[%emt 0:12:20]} 5. c3 {[%emt 0:00:52]} Nf6 {[%emt 0:07:44]} 6. a4 {[%emt 0:00:22]} a5 {[%emt 0:01:42] LiveBook: 38 Partien} 7. O-O {[%emt 0:01:39]} O-O {[%emt 0:03:11]} 8. Nbd2 {[%emt 0:00:39] C54: Giuoco Piano: 4 c3 Nf6, main lines with 5 d4 and 5 d3} (8. Bg5 Qe7 9. Nbd2 Be6 10. Qb3 Rab8 11. Rad1 h6 12. Bh4 Ba7 13. Bxe6 Qxe6 14. Bxf6 Qxb3 15. Nxb3 gxf6 {1-0 (45) Adams,M (2706)-McShane,L (2669) Hull 2018}) 8... Be6 {[%emt 0:09:54]} 9. Re1 {[%emt 0:07:52]} Qe7 {[%emt 0:04:05]} 10. Bxe6 {[%emt 0:03:40]} fxe6 $146 {[%emt 0:00:37]} ({Predecessor:} 10... Qxe6 11. Nf1 Ng4 12. d4 exd4 13. cxd4 Bb4 14. d5 Qg6 15. dxc6 Bxe1 16. Qxe1 bxc6 {1-0 (39) Rahulan,T (1760)-Gardiner,N (1255) Montevideo 2017}) 11. Nf1 {[%emt 0:00:42]} Nh5 {[%emt 0:09:57]} 12. Be3 {[%emt 0:01:48]} Bxe3 {[%emt 0:02:33]} 13. Rxe3 {[%emt 0:05:49]} Nf4 {[%emt 0:00:33]} 14. g3 {[%emt 0:01:44]} Nh3+ {[%emt 0:08:20]} 15. Kg2 {[%emt 0:01:25]} Ng5 {[%emt 0:00:08]} 16. Nxg5 {[%emt 0:00:45]} Qxg5 {[%emt 0:00:07]} 17. h4 {[%emt 0:01:50]} Qf6 {[%emt 0:01:24]} 18. Qe2 {[%emt 0:05:34]} Rf7 {[%emt 0:01:32]} 19. Nh2 {[%emt 0:00:28]} Raf8 {[%emt 0:02:13]} 20. Rf3 {[%emt 0:02:52]} Qg6 {[%emt 0:01:25]} 21. Rxf7 {[%emt 0:01:02]} Rxf7 {[%emt 0:01:20]} 22. Rh1 {[%emt 0:01:39]} h5 {[%emt 0:04:28]} 23. Nf3 {[%emt 0:01:06]} Rf8 {[%emt 0:03:19]} 24. Ng5 {[%emt 0:01:17]} Nd8 $16 {[%emt 0:04:26]} 25. Rc1 {[%emt 0:04:31]} Nf7 {[%emt 0:02:11]} 26. Nh3 {[%emt 0:00:27]} Qh6 {[%emt 0:01:08]} 27. Rb1 {[%emt 0:01:31]} Kh7 {[%emt 0:01:49]} 28. Rh1 {[%emt 0:03:55]} Qf6 {[%emt 0:00:35]} 29. Qxh5+ {[%emt 0:00:34]} Kg8 {[%emt 0:01:23]} 30. Qe2 {[%emt 0:03:07]} b6 {[%emt 0:00:42]} 31. Rf1 {[%emt 0:03:19]} Qh6 {[%emt 0:01:01]} 32. Rd1 {[%emt 0:05:25]} Qf6 {[%emt 0:01:58]} 33. Rf1 {[%emt 0:08:11]} Qh6 {[%emt 0:00:30]} 34. Qd1 {[%emt 0:00:27]} g6 {[%emt 0:01:14]} 35. Qg4 {[%emt 0:00:31]} Nd8 {[%emt 0:01:52]} 36. Ng5 {[%emt 0:00:48]} Rf6 {[%emt 0:00:34]} 37. Rd1 {[%emt 0:06:38]} Qh5 {[%emt 0:00:43]} 38. Qxh5 {[%emt 0:01:31]} gxh5 {[%emt 0:00:07]} 39. Rf1 {[%emt 0:01:43]} Nf7 {[%emt 0:00:18]} 40. f4 {[%emt 0:00:00]} Nxg5 {[%emt 0:00:00]} 41. fxg5 {[%emt 0:03:45]} Rxf1 {[%emt 0:03:40]} 42. Kxf1 {[%emt 0:00:02]} Kg7 {[%emt 0:00:23]} 43. Kg2 {[%emt 0:00:06]} c5 {[%emt 0:00:50]} 44. c4 {[%emt 0:00:20]} Kg6 {[%emt 0:00:14]} 45. Kf3 {[%emt 0:00:06]} 1-0

[Event "WYCC 2018 O14"]
[Site "Halkidiki"]
[Date "2018.10.24"]
[Round "6"]
[White "Tanriverdi, Enes"]
[Black "Antonica, Dragos-Andrei"]
[Result "1/2-1/2"]
[ECO "E15"]
[WhiteElo "2317"]
[BlackElo "2061"]
[Annotator "NA"]
[PlyCount "54"]
[EventDate "2018.10.20"]
[EventType "swiss"]
[EventCountry "GRE"]
[SourceTitle "playchess.com"]
[Source "ChessBase"]
[SourceQuality "1"]
[TimeControl "40/5400+30:1800+30"]

1. d4 {[%emt 0:00:00]} Nf6 {[%emt 0:00:00]} 2. c4 {[%emt 0:00:00]} e6 {[%emt 0:00:00]} 3. Nf3 {[%emt 0:00:00]} b6 {[%emt 0:00:17]} 4. g3 {[%emt 0:00:00]} Ba6 {[%emt 0:01:00]} 5. b3 {[%emt 0:00:00]} d5 {[%emt 0:00:31]} 6. Bg2 {[%emt 0:00:14]} dxc4 {[%emt 0:01:29]} 7. Ne5 {[%emt 0:05:59]} Bb4+ {[%emt 0:00:50]} 8. Kf1 {[%emt 0:11:49]} Bd6 {[%emt 0:03:01]} 9. Nxc4 {[%emt 0:13:32]} ({Reject} 9. Bxa8 Bxe5 10. e3 c5 $14) 9... Nd5 {[%emt 0:02:26] LiveBook: 60 Games} 10. e4 {[%emt 0:04:23]} Ne7 {[%emt 0:00:14] E15: Queen's Indian: 4 g3 sidelines, 4 g3 Ba6 and 4 g3 Bb7 early deviations} 11. Kg1 {[%emt 0:05:06]} Bxc4 {[%emt 0:15:11]} 12. bxc4 {[%emt 0:00:06]} Nbc6 {[%emt 0:00:44]} 13. Nc3 {[%emt 0:09:04]} e5 {[%emt 0:30:14]} 14. d5 {[%emt 0:01:15]} Na5 $146 {[%emt 0:05:10]} ({Predecessor:} 14... Nd4 15. f4 c5 16. Be3 f5 17. Qd3 O-O {0-1 (42) Vasilev,M (2487)-Kopasov,A (2190) Albena 2009}) 15. h4 {[%emt 0:04:53]} O-O {[%emt 0:00:40]} 16. Qd3 {[%emt 0:04:10]} f5 {[%emt 0:10:02]} 17. exf5 {[%emt 0:09:47]} Nxf5 {[%emt 0:00:07]} 18. Ne4 {[%emt 0:00:15]} Nb7 $16 {[%emt 0:01:54]} 19. Bh3 {[%emt 0:02:29]} Qd7 {[%emt 0:08:47]} 20. Be3 {[%emt 0:08:50]} h6 {[%emt 0:02:08]} 21. Kg2 {[%emt 0:02:20]} Qf7 {[%emt 0:00:34]} 22. Rhf1 {[%emt 0:07:28]} Nxh4+ {[%emt 0:02:37]} 23. Kh2 {[%emt 0:04:01]} Nf3+ {[%emt 0:01:20]} 24. Kg2 {[%emt 0:00:04]} Nh4+ {[%emt 0:04:13]} 25. Kh2 {[%emt 0:00:18]} Nf3+ {[%emt 0:07:00]} 26. Kh1 {[%emt 0:01:20]} Qh5 {[%emt 0:00:16]} 27. Kg2 {[%emt 0:00:05]} Nh4+ {[%emt 0:00:15]} 1/2-1/2

[Event "WYCC 2018 O14"]
[Site "Halkidiki"]
[Date "2018.10.24"]
[Round "6"]
[White "Nogerbek, Kazybek"]
[Black "Pogosyan, Stefan"]
[Result "1/2-1/2"]
[ECO "C88"]
[WhiteElo "2316"]
[BlackElo "2373"]
[Annotator "NA"]
[PlyCount "56"]
[EventDate "2018.10.20"]
[EventType "swiss"]
[EventCountry "GRE"]
[SourceTitle "playchess.com"]
[Source "ChessBase"]
[SourceQuality "1"]
[TimeControl "40/5400+30:1800+30"]

1. e4 {[%emt 0:00:00]} e5 {[%emt 0:00:00]} 2. Nf3 {[%emt 0:00:00]} Nc6 {[%emt 0:00:00]} 3. Bb5 {[%emt 0:00:14]} a6 {[%emt 0:00:00]} 4. Ba4 {[%emt 0:00:07]} Nf6 {[%emt 0:00:00]} 5. O-O {[%emt 0:00:10]} Be7 {[%emt 0:00:06]} 6. Re1 {[%emt 0:00:33]} b5 {[%emt 0:00:14]} 7. Bb3 {[%emt 0:00:08]} O-O {[%emt 0:00:12]} 8. h3 {[%emt 0:00:04]} Bb7 {[%emt 0:00:22]} 9. d3 {[%emt 0:10:04]} d6 {[%emt 0:01:09]} 10. c3 {[%emt 0:03:39]} Na5 {[%emt 0:00:14] LiveBook: 179 Games C92: Closed Ruy Lopez: 9...Be6, Karpov and Flohr-Zaitsev Variations} 11. Bc2 {[%emt 0:00:10]} c5 {[%emt 0:00:08]} 12. d4 {[%emt 0:05:16]} (12. Nbd2 Re8 13. Nf1 Qc7 14. Ne3 c4 15. d4 Nxe4 16. Nf5 Nf6 17. Bg5 Bd8 18. dxe5 dxe5 19. Nd6 Re6 20. Nxb7 Nxb7 21. a4 Rb8 22. axb5 axb5 {½-½ (63) Firouzja,A (2549)-Inarkiev,E (2684) Moscow 2018}) 12... cxd4 {[%emt 0:09:44]} 13. cxd4 {[%emt 0:00:07]} exd4 {[%emt 0:00:28]} 14. Nxd4 {[%emt 0:01:44]} Re8 {[%emt 0:00:07]} 15. Nd2 {[%emt 0:05:06]} Bf8 16. b3 {[%emt 0:02:12]} g6 {[%emt 0:06:57]} 17. Bb2 {[%emt 0:02:01]} Bg7 {[%emt 0:00:50]} 18. Rc1 {[%emt 0:10:10]} Qb6 {[%emt 0:11:49]} 19. Bb1 {[%emt 0:06:54] [#]} d5 $146 {[%emt 0:06:36]} ({Predecessor:} 19... Nd7 20. N2f3 {0-1 (50) Peng,D (2254)-Friedel,J (2528) Madison 2017}) 20. e5 {[%emt 0:04:21]} Ne4 {[%emt 0:00:55]} 21. Nxe4 {[%emt 0:07:30]} dxe4 {[%emt 0:00:13]} 22. Bxe4 {[%emt 0:00:17]} Bxe4 {[%emt 0:16:11]} 23. Rxe4 {[%emt 0:00:40]} Rxe5 {[%emt 0:00:06]} 24. Rxe5 {[%emt 0:05:17]} Bxe5 {[%emt 0:00:02]} 25. Qe1 {[%emt 0:00:28]} Bf6 $11 {[%emt 0:08:49]} 26. Bc3 {[%emt 0:02:12]} Bxd4 {[%emt 0:02:03]} 27. Bxd4 {[%emt 0:00:07]} Qxd4 {[%emt 0:00:07]} 28. Qxa5 {[%emt 0:00:03]} Qd6 {[%emt 0:00:47]} 1/2-1/2

[Event "WYCC 2018 O14"]
[Site "Halkidiki"]
[Date "2018.10.24"]
[Round "6"]
[White "Cardoso Cardoso, Jose Gabriel"]
[Black "Kacharava, Nikolozi"]
[Result "1-0"]
[ECO "A25"]
[WhiteElo "2313"]
[BlackElo "2373"]
[Annotator "NA"]
[PlyCount "53"]
[EventDate "2018.10.20"]
[EventType "swiss"]
[EventCountry "GRE"]
[SourceTitle "playchess.com"]
[Source "ChessBase"]
[SourceQuality "1"]
[TimeControl "40/5400+30:1800+30"]

1. c4 {[%emt 0:00:00]} e5 {[%emt 0:00:26]} 2. Nc3 {[%emt 0:00:04]} Nc6 {[%emt 0:00:45]} 3. e3 {[%emt 0:02:10]} Nge7 {[%emt 0:05:20]} 4. Nf3 {[%emt 0:02:27]} d5 {[%emt 0:05:02]} 5. d4 {[%emt 0:06:53]} exd4 {[%emt 0:04:29]} 6. exd4 {[%emt 0:01:54]} Be6 {[%emt 0:10:09]} 7. Ng5 {[%emt 0:12:32]} Bf5 {[%emt 0:01:56]} 8. cxd5 {[%emt 0:06:52]} Nb4 {[%emt 0:09:12]} 9. Qa4+ {[%emt 0:29:52]} Nec6 {[%emt 0:00:51]} 10. dxc6 {[%emt 0:00:08]} b5 $18 {[%emt 0:06:16]} 11. Qb3 {[%emt 0:10:27]} Nc2+ {[%emt 0:05:44]} 12. Kd1 {[%emt 0:00:08]} Qxd4+ {[%emt 0:02:56]} 13. Bd2 {[%emt 0:00:06]} O-O-O {[%emt 0:01:56]} 14. Nf3 {[%emt 0:00:19]} Qxf2 {[%emt 0:02:50]} 15. Bxb5 {[%emt 0:01:11]} Bb4 {[%emt 0:07:06]} 16. Rf1 {[%emt 0:08:19]} Qb6 {[%emt 0:05:53]} 17. Kc1 {[%emt 0:02:10]} a5 {[%emt 0:08:39]} 18. Rb1 {[%emt 0:02:16]} Ne3 {[%emt 0:06:40]} 19. Re1 {[%emt 0:01:07]} Nxg2 {[%emt 0:06:00]} 20. Re5 {[%emt 0:01:10]} Bxb1 {[%emt 0:00:51]} 21. Kxb1 {[%emt 0:00:41]} f6 {[%emt 0:03:06]} 22. Re2 {[%emt 0:01:41]} Bxc3 {[%emt 0:02:04]} 23. bxc3 {[%emt 0:00:45]} a4 {[%emt 0:00:24]} 24. Bxa4 {[%emt 0:01:37]} Qxb3+ {[%emt 0:00:41]} 25. Bxb3 {[%emt 0:00:12]} Rd3 {[%emt 0:00:24]} 26. Nd4 {[%emt 0:00:05]} Nh4 {[%emt 0:00:30]} 27. Bc4 {[%emt 0:00:05]} 1-0

[Event "WYCC 2018 O14"]
[Site "Halkidiki"]
[Date "2018.10.24"]
[Round "6"]
[White "Tsay, Vincent"]
[Black "Stremavicius, Pijus"]
[Result "1-0"]
[ECO "A40"]
[WhiteElo "2310"]
[BlackElo "2024"]
[Annotator "NA"]
[PlyCount "45"]
[EventDate "2018.10.20"]
[EventType "swiss"]
[EventCountry "GRE"]
[SourceTitle "playchess.com"]
[Source "ChessBase"]
[SourceQuality "1"]
[TimeControl "40/5400+30:1800+30"]

1. d4 {[%emt 0:00:00]} Nf6 {[%emt 0:00:00]} 2. c4 {[%emt 0:00:00]} e6 {[%emt 0:00:00]} 3. g3 {[%emt 0:00:00]} d5 {[%emt 0:00:00]} 4. Nf3 {[%emt 0:00:04]} dxc4 {[%emt 0:00:00]} 5. Qa4+ {[%emt 0:00:08]} Nbd7 {[%emt 0:00:00]} 6. Qxc4 {[%emt 0:00:08]} a6 {[%emt 0:00:00]} 7. Bg2 {[%emt 0:00:14]} b5 {[%emt 0:00:00]} 8. Qc6 {[%emt 0:00:07]} Rb8 {[%emt 0:00:01]} 9. Bf4 {[%emt 0:00:09]} Nd5 {[%emt 0:02:58]} 10. Bg5 {[%emt 0:00:36]} Be7 {[%emt 0:01:40]} 11. Bxe7 {[%emt 0:00:06]} Qxe7 {[%emt 0:03:07]} 12. Nc3 {[%emt 0:01:17]} Nb4 {[%emt 0:09:43]} 13. Qxc7 {[%emt 0:01:19]} Nc2+ {[%emt 0:01:28]} 14. Kd1 {[%emt 0:01:00]} Nxa1 {[%emt 0:00:39]} 15. Ne5 {[%emt 0:00:07]} O-O {[%emt 0:15:12]} 16. Nc6 {[%emt 0:01:09] LiveBook: 5 Games} Qf6 {[%emt 0:00:05]} 17. Ne4 {[%emt 0:01:43]} Qh6 $18 {[%emt 0:06:56]} 18. Nxb8 {[%emt 0:00:31]} Nxb8 {[%emt 0:07:30]} 19. Qxb8 {[%emt 0:01:30]} e5 {[%emt 0:15:08]} 20. Qxe5 {[%emt 0:11:29]} Bh3 {[%emt 0:00:07]} 21. Bxh3 {[%emt 0:01:29]} Qc6 {[%emt 0:00:06]} 22. Kd2 {[%emt 0:01:51]} Re8 {[%emt 0:00:08]} 23. Rc1 {[%emt 0:02:42]} 1-0

[Event "WYCC 2018 O14"]
[Site "Halkidiki"]
[Date "2018.10.24"]
[Round "6"]
[White "Krastev, Alexander"]
[Black "Tsoi, Dmitry"]
[Result "0-1"]
[ECO "C41"]
[WhiteElo "2298"]
[BlackElo "2429"]
[Annotator "RC"]
[PlyCount "102"]
[EventDate "2018.10.20"]
[EventType "swiss"]
[EventCountry "GRE"]
[SourceTitle "playchess.com"]
[Source "ChessBase"]
[SourceQuality "1"]
[TimeControl "40/5400+30:1800+30"]

1. e4 {[%emt 0:00:00]} e5 {[%emt 0:00:00]} 2. Nf3 {[%emt 0:00:00]} d6 {[%emt 0:00:00]} 3. d4 {[%emt 0:00:00]} exd4 {[%emt 0:00:00]} 4. Nxd4 {[%emt 0:00:02]} Nf6 {[%emt 0:00:00]} 5. Nc3 {[%emt 0:00:07]} Be7 {[%emt 0:00:00]} 6. Nde2 {[%emt 0:00:46]} c6 {[%emt 0:01:22]} 7. g3 {[%emt 0:00:13]} b5 {[%emt 0:00:18]} 8. Bg2 {[%emt 0:02:16]} Bb7 {[%emt 0:00:29]} 9. O-O {[%emt 0:02:33]} Nbd7 {[%emt 0:00:44]} 10. Nd4 {[%emt 0:09:55]} O-O {[%emt 0:04:51]} 11. Nf5 {[%emt 0:02:26]} Ne5 {[%emt 0:04:27]} 12. f4 {[%emt 0:04:00]} Ng6 {[%emt 0:00:26]} 13. a3 {[%emt 0:12:11]} Re8 {[%emt 0:02:37]} 14. Be3 {[%emt 0:11:24]} Bf8 {[%emt 0:03:11]} 15. Kh1 {[%emt 0:01:35]} a5 {[%emt 0:05:10]} 16. b4 {[%emt 0:11:26]} Qd7 {[%emt 0:15:33]} 17. Qd3 {[%emt 0:01:23]} axb4 {[%emt 0:35:12]} 18. axb4 {[%emt 0:00:11]} Rxa1 {[%emt 0:01:35]} 19. Rxa1 {[%emt 0:00:05]} c5 20. bxc5 {[%emt 0:20:49]} Nxe4 {[%emt 0:02:38]} 21. Nxd6 {[%emt 0:17:34]} Nxd6 {[%emt 0:11:26]} 22. cxd6 {[%emt 0:00:06]} Bxg2+ {[%emt 0:01:38]} 23. Kxg2 {[%emt 0:00:02]} Bxd6 {[%emt 0:01:29]} 24. Qxb5 {[%emt 0:02:16]} Qc8 {[%emt 0:00:08]} 25. Qd3 {[%emt 0:00:31]} Qc6+ {[%emt 0:00:19]} 26. Kf2 {[%emt 0:00:37]} Bc5 {[%emt 0:01:14]} 27. Re1 {[%emt 0:00:27]} Bb4 {[%emt 0:00:30]} 28. Bd2 {[%emt 0:00:30]} Rc8 {[%emt 0:03:26]} 29. Ne4 {[%emt 0:00:29]} Be7 {[%emt 0:01:00]} 30. c3 {[%emt 0:00:34]} Rd8 {[%emt 0:00:08]} 31. Qc2 {[%emt 0:00:31]} h5 {[%emt 0:00:47]} 32. Be3 {[%emt 0:00:26]} h4 {[%emt 0:00:09]} 33. Re2 {[%emt 0:00:32]} Qc8 {[%emt 0:00:33]} 34. Rd2 {[%emt 0:00:32]} Re8 35. Qd1 Qh3 {[%emt 0:00:53]} 36. Qg1 {[%emt 0:00:52]} Qf5 {[%emt 0:00:17]} 37. Qg2 {[%emt 0:00:35]} Ne5 {[%emt 0:00:09]} 38. Bd4 {[%emt 0:00:32]} h3 {[%emt 0:00:21]} 39. Qh1 {[%emt 0:00:24]} Ng4+ {[%emt 0:00:10]} 40. Kf1 {[%emt 0:00:00]} Qb5+ {[%emt 0:00:00]} 41. Re2 {[%emt 0:16:25]} Qb1+ {[%emt 0:03:34]} 42. Re1 {[%emt 0:00:06]} Qd3+ {[%emt 0:00:03]} 43. Kg1 {[%emt 0:00:49]} Bf8 {[%emt 0:04:16]} 44. f5 {[%emt 0:01:49]} Kh8 {[%emt 0:04:31]} 45. Ba7 {[%emt 0:05:50]} Bd6 {[%emt 0:04:07]} 46. Bd4 {[%emt 0:01:15]} Bb4 {[%emt 0:01:48]} 47. f6 {[%emt 0:02:53]} g6 {[%emt 0:00:22]} 48. Bf2 {[%emt 0:01:45]} Nxf2 {[%emt 0:00:09]} 49. Kxf2 {[%emt 0:00:13]} Bc5+ {[%emt 0:00:06]} 50. Nxc5 {[%emt 0:00:08]} Qd2+ {[%emt 0:00:03]} 51. Kf3 {[%emt 0:00:08]} Rxe1 {[%emt 0:00:04]} 0-1

[Event "WYCC 2018 O14"]
[Site "Halkidiki"]
[Date "2018.10.24"]
[Round "6"]
[White "Ozenir, Ekin Baris"]
[Black "Chatzieleftheriou, Andreas"]
[Result "1-0"]
[ECO "E44"]
[WhiteElo "2293"]
[BlackElo "1984"]
[Annotator "NA"]
[PlyCount "99"]
[EventDate "2018.10.20"]
[EventType "swiss"]
[EventCountry "GRE"]
[SourceTitle "playchess.com"]
[Source "ChessBase"]
[SourceQuality "1"]
[TimeControl "40/5400+30:1800+30"]

1. d4 {[%emt 0:00:00]} Nf6 {[%emt 0:00:00]} 2. c4 {[%emt 0:00:01]} e6 {[%emt 0:00:00]} 3. Nc3 {[%emt 0:00:12]} Bb4 {[%emt 0:00:00]} 4. e3 {[%emt 0:00:31]} b6 {[%emt 0:00:16]} 5. Nge2 {[%emt 0:00:28]} Bb7 {[%emt 0:01:09]} 6. a3 {[%emt 0:00:50]} Bd6 {[%emt 0:00:40]} 7. Ng3 {[%emt 0:16:14] E44: Nimzoindisch (Rubinstein-System)} h5 {[%emt 0:00:12] LiveBook: 18 Games} 8. d5 {[%emt 0:04:18]} Be5 {[%emt 0:10:39]} 9. Nge2 {[%emt 0:03:40]} h4 $146 {[%emt 0:14:03]} ({Vorgänger:} 9... exd5 10. cxd5 c6 11. e4 cxd5 12. exd5 O-O 13. Bg5 Re8 14. Rc1 Na6 {0-1 (23) Rodriguez Alvarez,V (2140)-Cordova,E (2574) Bogota 2012}) 10. e4 {[%emt 0:05:00]} exd5 {[%emt 0:03:08]} 11. cxd5 {[%emt 0:03:52]} d6 {[%emt 0:11:01]} 12. Bg5 {[%emt 0:04:46]} Bxc3+ {[%emt 0:04:43]} 13. Nxc3 {[%emt 0:00:17]} Nbd7 {[%emt 0:00:16]} 14. Bb5 {[%emt 0:07:27]} a6 {[%emt 0:03:22]} 15. Bc6 {[%emt 0:02:46]} Bxc6 {[%emt 0:05:32]} 16. dxc6 {[%emt 0:00:12]} Nc5 {[%emt 0:00:24]} 17. O-O {[%emt 0:14:02]} Ne6 {[%emt 0:03:51]} 18. Be3 {[%emt 0:02:17]} O-O {[%emt 0:09:55]} 19. Qf3 {[%emt 0:04:06]} Re8 {[%emt 0:07:10]} 20. b4 {[%emt 0:07:21]} Nh7 {[%emt 0:04:11]} 21. Qg4 {[%emt 0:01:57]} Neg5 {[%emt 0:04:04]} 22. f3 {[%emt 0:08:10]} Rc8 {[%emt 0:03:27]} 23. Rae1 {[%emt 0:01:34]} h3 {[%emt 0:01:14]} 24. g3 {[%emt 0:00:56]} Qf6 {[%emt 0:01:08]} 25. Nd5 {[%emt 0:01:12]} Qe6 {[%emt 0:00:12]} 26. Qh4 {[%emt 0:03:48]} f6 {[%emt 0:00:17]} 27. Bd4 {[%emt 0:02:17]} Qxd5 {[%emt 0:02:51]} 28. exd5 {[%emt 0:01:00]} Rxe1 {[%emt 0:00:06]} 29. Qg4 {[%emt 0:01:07]} Rce8 {[%emt 0:00:56]} 30. Rxe1 {[%emt 0:01:50]} Rxe1+ {[%emt 0:00:04]} 31. Kf2 {[%emt 0:00:07]} Rh1 {[%emt 0:00:31]} 32. f4 {[%emt 0:01:01]} Rxh2+ {[%emt 0:00:02]} 33. Kg1 {[%emt 0:00:56]} f5 {[%emt 0:05:15]} 34. Qh5 {[%emt 0:01:46]} Rg2+ {[%emt 0:00:01]} 35. Kh1 {[%emt 0:00:46]} Ne4 {[%emt 0:00:23]} 36. Qxh3 {[%emt 0:00:32]} Rd2 {[%emt 0:00:12]} 37. Kg1 {[%emt 0:00:38]} Rxd4 {[%emt 0:02:43]} 38. Qxf5 {[%emt 0:00:23]} Nhf6 {[%emt 0:00:12]} 39. Qc8+ {[%emt 0:00:29]} Kh7 {[%emt 0:00:03]} 40. Qxc7 {[%emt 0:00:00]} Nxd5 {[%emt 0:00:00]} 41. Qc8 {[%emt 0:08:39]} Ne3 {[%emt 0:24:26]} 42. Qh3+ {[%emt 0:03:48]} Kg8 {[%emt 0:00:33]} 43. Qe6+ {[%emt 0:00:27]} Kh7 {[%emt 0:01:47]} 44. c7 Rd1+ {[%emt 0:00:57]} 45. Kh2 {[%emt 0:05:55]} Nf2 {[%emt 0:05:27]} 46. g4 {[%emt 0:03:50]} Nexg4+ {[%emt 0:04:12]} 47. Kg2 $18 {[%emt 0:01:37]} Rd2 {[%emt 0:00:49]} 48. c8=Q {[%emt 0:02:01]} Nh6 {[%emt 0:00:28]} 49. Qe3 {[%emt 0:00:51]} Ne4+ {[%emt 0:00:13]} 50. Qxd2 {[%emt 0:00:09]} 1-0

[Event "WYCC 2018 O14"]
[Site "Halkidiki"]
[Date "2018.10.24"]
[Round "6"]
[White "Trifan, Andrei Ioan"]
[Black "Gavriil, Odysseas-Panagiotis"]
[Result "1/2-1/2"]
[ECO "B03"]
[WhiteElo "2290"]
[BlackElo "2009"]
[Annotator "NA"]
[PlyCount "96"]
[EventDate "2018.10.20"]
[EventType "swiss"]
[EventCountry "GRE"]
[SourceTitle "playchess.com"]
[Source "ChessBase"]
[SourceQuality "1"]
[TimeControl "40/5400+30:1800+30"]

1. e4 {[%emt 0:00:00]} Nf6 {[%emt 0:00:00]} 2. e5 {[%emt 0:00:31]} Nd5 {[%emt 0:00:00]} 3. c4 {[%emt 0:00:50]} Nb6 {[%emt 0:00:00]} 4. d4 {[%emt 0:00:33]} d6 {[%emt 0:00:08]} 5. exd6 {[%emt 0:01:07]} exd6 {[%emt 0:00:09]} 6. Nc3 {[%emt 0:05:47]} Be7 {[%emt 0:00:16]} 7. Bd3 {[%emt 0:03:32]} O-O {[%emt 0:00:47] B03: Aljechin-Verteidigung (Vierbauernvariante)} 8. Nge2 {[%emt 0:04:18]} Bf6 {[%emt 0:01:13]} (8... c6 9. O-O Na6 10. a3 Nc7 11. h3 Re8 12. b3 d5 13. c5 Nd7 14. Bf4 Nf8 15. b4 {0-1 (45) Volokitin,A (2628)-Kasimdzhanov,R (2683) Riadh 2017}) 9. O-O {[%emt 0:02:40]} Nc6 {[%emt 0:00:58]} 10. b3 {[%emt 0:01:18]} Re8 {[%emt 0:03:11] LiveBook: 16 Games} 11. Be3 {[%emt 0:02:56]} Nb4 {[%emt 0:04:09]} 12. Bb1 {[%emt 0:03:16]} c6 {[%emt 0:07:50]} 13. Qd2 {[%emt 0:10:00]} d5 {[%emt 0:06:32]} 14. c5 {[%emt 0:02:40]} Nd7 {[%emt 0:00:14]} 15. a3 {[%emt 0:05:51]} Na6 $146 {[%emt 0:00:11]} 16. b4 {[%emt 0:04:30]} Nc7 {[%emt 0:02:14]} 17. Ng3 {[%emt 0:03:32]} g6 {[%emt 0:01:44]} 18. Bc2 {[%emt 0:04:21]} Nf8 {[%emt 0:06:09]} 19. f4 {[%emt 0:03:23]} h5 {[%emt 0:11:46]} 20. f5 {[%emt 0:05:55]} h4 {[%emt 0:01:02]} 21. Nh1 {[%emt 0:05:36]} a5 {[%emt 0:04:50]} 22. Rae1 {[%emt 0:05:40]} axb4 {[%emt 0:00:34]} 23. axb4 {[%emt 0:00:02]} Ra3 {[%emt 0:00:23]} 24. fxg6 {[%emt 0:04:33]} fxg6 {[%emt 0:00:52]} 25. Nf2 {[%emt 0:01:20]} Na6 {[%emt 0:06:47]} 26. Nb1 {[%emt 0:06:55]} Raxe3 {[%emt 0:07:08]} 27. Rxe3 {[%emt 0:00:02]} Rxe3 {[%emt 0:00:11]} 28. Qxe3 {[%emt 0:00:02]} Nxb4 {[%emt 0:00:05]} 29. Bd3 {[%emt 0:05:12]} Nxd3 {[%emt 0:00:19]} 30. Nxd3 {[%emt 0:00:27]} Bf5 {[%emt 0:00:47]} 31. Ne5 {[%emt 0:01:05]} Qe7 {[%emt 0:04:10]} 32. Nd2 {[%emt 0:02:15]} h3 {[%emt 0:10:50]} 33. gxh3 {[%emt 0:03:01]} Bg5 $14 {[%emt 0:01:14]} 34. Qc3 {[%emt 0:01:19]} Qh7 {[%emt 0:03:37]} 35. Rf3 {[%emt 0:00:49]} Ne6 {[%emt 0:00:42]} 36. Nf1 {[%emt 0:01:48]} Qh4 {[%emt 0:01:48]} 37. Ng3 {[%emt 0:00:41]} Nxd4 {[%emt 0:09:06]} 38. Nxf5 {[%emt 0:00:21]} gxf5 {[%emt 0:01:54]} 39. Rf2 {[%emt 0:00:01]} Bf6 {[%emt 0:02:52]} 40. Qe3 {[%emt 0:00:00]} Qe4 {[%emt 0:00:00]} 41. Rg2+ {[%emt 0:15:40]} Kh7 {[%emt 0:11:34]} 42. Qg3 {[%emt 0:05:15]} Qb1+ {[%emt 0:00:13]} 43. Kf2 {[%emt 0:00:02]} Qc2+ {[%emt 0:00:17]} 44. Kf1 {[%emt 0:02:39]} Qd1+ {[%emt 0:00:18]} 45. Kf2 {[%emt 0:00:22]} Qe2+ {[%emt 0:00:43]} 46. Kg1 {[%emt 0:00:02]} Qd1+ {[%emt 0:00:14]} 47. Kf2 {[%emt 0:00:02]} Qe2+ {[%emt 0:00:13]} 48. Kg1 {[%emt 0:00:02]} Qd1+ {[%emt 0:00:06]} 1/2-1/2